Cogmind - Beta 10.2 @@@ ROGUE MODE // 2022.01.27 @ 20:54:48 Player: Sara Result: Self-destructed Performance ------------- Evolutions (1) 500 Regions Visited (2) 400 Robots Destroyed (8) 40 Value Destroyed (136) 136 Prototype IDs (0) 0 Alien Tech Used (0) 0 Bonus (0) 0 TOTAL SCORE: 1076 Bonus ------- None Cogmind --------- Core Integrity 400/400 Matter 300/300 Energy 125/125 System Corruption 0% Temperature Cool (0) Movement Treading (180) Ox1 Location -9/Materials Parts ------- > --- POWER (1) -------- Light Ion Engine > --- PROPULSION (2) --- Light Treads Aluminum Leg > --- UTILITY (4) ------ Large Storage Unit Sensor Array > --- WEAPON (2) ------- Small Laser Assault Rifle > --- INVENTORY (10) --- Light Ion Engine Light Treads Light Treads Light Treads Wheel Compact Wheel Small Storage Unit Visual Processing Unit Light Assault Rifle Light Assault Rifle Peak State ------------ > --- POWER ------------ Light Ion Engine > --- PROPULSION ------- Aluminum Leg Aluminum Leg > --- UTILITY ---------- Large Storage Unit Sensor Array > --- WEAPON ----------- Small Laser Light Assault Rifle > --- INVENTORY -------- Light Ion Engine Light Treads Light Treads Wheel Compact Wheel Small Storage Unit Visual Processing Unit Assault Rifle Light Assault Rifle [Rating: 8] Favorites ----------- Power Light Ion Engine Engine Light Ion Engine Propulsion Aluminum Leg Treads Light Treads Leg Aluminum Leg Utility Large Storage Unit Device Sensor Array Storage Large Storage Unit Weapon Small Laser Energy Gun Small Laser Ballistic Gun Assault Rifle Build | -11 -10 -9 ------- Run | Scr Mat Mat Slots Evolved 2 | . . 2 Power . | . . . Propulsion . | . . . Utility 2 | . . 2 Weapon . | . . . Parts Attached 6 | . 5 1 Power . | . . . Engine . | . . . Core . | . . . Reactor . | . . . Propulsion 1 | . . 1 Treads 1 | . . 1 Leg . | . . . Wheel . | . . . Hover . | . . . Flight . | . . . Utility 3 | . 3 . Device 1 | . 1 . Storage 2 | . 2 . Processor . | . . . Hackware . | . . . Protection . | . . . Artifact . | . . . Weapon 2 | . 2 . Energy Gun . | . . . Energy Cannon . | . . . Ballistic Gun 2 | . 2 . Ballistic Cannon . | . . . Launcher . | . . . Special Weapon . | . . . Impact Weapon . | . . . Slashing Weapon . | . . . Piercing Weapon . | . . . Special Melee Weapon . | . . . Unidentified Prototypes . | . . . Parts Lost . | . . . Power . | . . . Propulsion . | . . . Utility . | . . . Weapon . | . . . Highest Loss Streak . | . . . Average Slot Usage (%) 91 | . 99 77 Engine 12 | . 14 11 Leg 25 | . 28 20 Device 11 | . 12 11 Storage 13 | . 15 11 Energy Gun 12 | . 14 11 Ballistic Gun 12 | . 14 11 Naked Turns . | . . . Heaviest Build 38 | 10 38 23 Greatest Support 20 | 20 20 20 Greatest Overweight (x) 1 | . 1 1 Average Overweight (x) . | . . 1 Largest Inventory Capacity 16 | . 16 10 Average Capacity 10 | . 10 10 Most Carried 10 | . 10 10 Average Carried 9 | . 8 10 Final Capacity 10 | 6 10 10 Final Carried 10 | 6 10 10 Class Distribution -------------------- 100% | Mutant Dominant Class ---------------- Mutant | -10/Materials Mutant | -9/Materials Resources | -11 -10 -9 ----------- Run | Scr Mat Mat Matter Collected 353 | 183 92 78 Remotely . | . . . Salvage Created 216 | . 114 102 Parts 12 | . 6 6 Haulers Intercepted 1 | . . 1 Recyclers Shooed . | . . . Parts Field Recycled . | . . . Retrieved Matter . | . . . Parts Self-Destructed . | . . . Prevented . | . . . Kills | -11 -10 -9 ------- Run | Scr Mat Mat Combat Hostiles Destroyed 5 | . 5 . Guns 5 | . 5 . Classes Destroyed 5 | . 2 3 Tunneler 1 | . . 1 Hauler 1 | . . 1 Watcher 1 | . . 1 Swarmer 3 | . 3 . Grunt 2 | . 2 . Best Kill Streak 3 | . 3 3 Combat Bots Only 3 | . 3 . Max Kills in Single Turn 2 | . 1 2 Gunslinging . | . . . Exploded . | . . . Melee . | . . . Uniques/NPCs Destroyed . | . . . Combat | -11 -10 -9 -------- Run | Scr Mat Mat Damage Taken 240 | . 240 . Core 25 | . 25 . Absorbed by Shields . | . . . Core Remaining (%) 95 | 100 90 . Volleys Fired 31 | . 16 15 Largest 2 | . 2 2 Hottest 60 | . 60 60 Shots Fired 58 | . 32 26 Gun 58 | . 32 26 Cannon . | . . . Launcher . | . . . Special . | . . . Kinetic 31 | . 16 15 Thermal 27 | . 16 11 Explosive . | . . . Electromagnetic . | . . . Robot Hit Streak 12 | . 12 6 Robot Miss Streak 6 | . 6 3 Penetration Max . | . . . Secondary Targets . | . . . Shots Hit Robots 36 | . 20 16 Core Hits 12 | . 8 4 Critical Hits 1 | . 1 . Critical Kills . | . . . Critical Parts Destroyed 1 | . 1 . Melee Attacks . | . . . Impact . | . . . Slashing . | . . . Piercing . | . . . Sneak Attacks . | . . . Combat Hostiles . | . . . Follow-up Attacks . | . . . Damage Inflicted 482 | . 257 225 Guns 482 | . 257 225 Cannons . | . . . Explosions . | . . . Melee . | . . . Ramming . | . . . Kinetic 251 | . 125 126 Thermal 231 | . 132 99 Explosive . | . . . Electromagnetic . | . . . Impact . | . . . Slashing . | . . . Piercing . | . . . Highest Corruption . | . . . Average Corruption . | . . . Corruption Purged . | . . . Overload Shots . | . . . Overflow Damage . | . . . Projectiles . | . . . Explosions . | . . . Melee . | . . . Knockbacks . | . . . Impact . | . . . Kinetic . | . . . Secondary . | . . . Self-Inflicted Damage . | . . . Shots . | . . . Rammed . | . . . Targets Rammed . | . . . Kicked . | . . . Crushed . | . . . Highest Temperature 72 | . 72 . Average Temperature 42 | . 42 . Received Heat Transfer 81 | . 81 . Siege Activations . | . . . Robots Corrupted . | . . . Combat Hostiles . | . . . Parts Fried . | . . . Impact Corruptions . | . . . Robots Melted . | . . . Combat Hostiles . | . . . Parts Melted . | . . . Heat Transferred 525 | . 300 225 Parts Sabotaged . | . . . Parts Stolen . | . . . Parts Stripped . | . . . Power Chain Reactions . | . . . Missiles Intercepted . | . . . Alert | -11 -10 -9 ------- Run | Scr Mat Mat Peak Influence 157 | . 157 24 Initial 5 | . . 5 Average 26 | . 37 9 Maximum Alert Level . | . . . Low Security (%) 100 | . 100 100 Level 1 . | . . . Level 2 . | . . . Level 3 . | . . . Level 4 . | . . . Level 5 . | . . . High Security . | . . . Max Security . | . . . Squads Dispatched . | . . . Investigation . | . . . Extermination . | . . . Reinforcement . | . . . Assault . | . . . Garrison . | . . . Intercept . | . . . Construction Impeded . | . . . Haulers Reinforced . | . . . Stealth | -11 -10 -9 --------- Run | Scr Mat Mat Distress Signals 1 | . 1 . Communications Jammed . | . . . Distress Signals . | . . . Times Spotted 7 | . 6 1 Peak Tracking Total 4 | . 4 1 Tactical Retreats . | . . . Traps | -11 -10 -9 ------- Run | Scr Mat Mat Traps Triggered . | . . . Indirectly . | . . . Trap Hack Attempts . | . . . Triggered . | . . . Disarmed . | . . . Reprogrammed . | . . . Reused . | . . . Traps Extracted . | . . . Installed . | . . . Triggered . | . . . Machines | -11 -10 -9 ---------- Run | Scr Mat Mat Machines Disabled . | . . . Max in Single Turn . | . . . Machines Sabotaged . | . . . Garrisons Compromised . | . . . Overloaded Fab Kills . | . . . Fab Network Shutdowns . | . . . Hacking | -11 -10 -9 --------- Run | Scr Mat Mat Machines Accessed 5 | . 5 . Terminals 4 | . 4 . Fabricators . | . . . Repair Stations . | . . . Recycling Units 1 | . 1 . Scanalyzers . | . . . Garrison Access . | . . . Total Hacks 21 | . 21 . Successful 12 | . 12 . Failed 8 | . 8 . Catastrophic 2 | . 2 . Database Lockouts 1 | . 1 . Manual 17 | . 17 . Terminals 19 | . 19 . Fabricators . | . . . Repair Stations . | . . . Recycling Units 2 | . 2 . Scanalyzers . | . . . Garrison Access . | . . . Terminal Hacks 6 | . 6 . Robot Analysis 1 | . 1 . Terminal Index 1 | . 1 . Alert Level 1 | . 1 . Unreport Threat 1 | . 1 . Registered Components 1 | . 1 . Zone Layout 1 | . 1 . Fabricator Hacks . | . . . Repair Station Hacks . | . . . Recycling Unit Hacks 1 | . 1 . Retrieve Components 1 | . 1 . Scanalyzer . | . . . Garrison Access Hacks . | . . . Unauthorized Hacks 5 | . 5 . Terminals 4 | . 4 . Assimilate 2 | . 2 . Botnet 1 | . 1 . Operators 1 | . 1 . Fabricators . | . . . Repair Stations . | . . . Recycling Units 1 | . 1 . Reject 1 | . 1 . Scanalyzers . | . . . Garrison Access . | . . . Data Cores Recovered . | . . . Used . | . . . Hacking Detections 4 | . 4 . Full Trace Events . | . . . Feedback Events . | . . . Feedback Blocked . | . . . Robot Schematics Acquired . | . . . Robots Built . | . . . Matter . | . . . Time . | . . . Total Robot Build Rating . | . . . Part Schematics Acquired . | . . . Parts Built . | . . . Matter . | . . . Time . | . . . Total Part Build Rating . | . . . Parts Repaired . | . . . Time . | . . . Parts Recycled . | . . . Recycled Matter . | . . . Retrieved Matter . | . . . Retrieved Components 3 | . 3 . Parts Scanalyzed . | . . . Part Schematics Acquired . | . . . Parts Damaged . | . . . Bothacking | -11 -10 -9 ------------ Run | Scr Mat Mat Used RIF Installer . | . . . Robots Hacked . | . . . Non-combat . | . . . Combat . | . . . Robot Hacks Applied . | . . . Relay Couplers Released . | . . . Robots Rewired . | . . . Allies Hacked . | . . . Hacks Repelled . | . . . Allies | -11 -10 -9 -------- Run | Scr Mat Mat Total Allies 1 | . 1 . Largest Group 1 | . 1 1 Highest-Rated Group 10 | . 10 10 Highest-Rated Ally 10 | . 10 10 Total Orders 1 | . . 1 STAY 1 | . . 1 Ally Attacks . | . . . Total Damage . | . . . Kills . | . . . Allies Corrupted . | . . . Allies Melted . | . . . Intel | -11 -10 -9 ------- Run | Scr Mat Mat Robot Analysis Total 1 | . 1 . Derelict Logs Recovered . | . . . Drone Launches . | . . . Drone Recoveries . | . . . Exploration | -11 -10 -9 ------------- Run | Scr Mat Mat Turns Passed 838 | . 532 306 Spaces Moved 417 | 1 262 154 Core . | . . . Treads 25 | . . 25 Legs 392 | 1 262 129 Wheels . | . . . Hover . | . . . Flight . | . . . Fastest Speed 120 | 120 120 150 Average Speed 150 | 120 148 154 Slowest Speed 180 | 120 150 180 Overloaded Moves . | . . . Propulsion Burnouts . | . . . Robots Hopped . | . . . Cave-ins Triggered . | . . . Exploration Rate (%) 14 | 2 31 11 Regions Visited 2 Branch Regions . Pre-discovered Areas . | . . . Known Exits Taken . | . . . Unknown Exits Taken 2 | 1 1 . Scrap Searched . | . . . Spaces Dug . | . . . Terrain Destroyed . | . . . Melee . | . . . Projectile . | . . . AOE . | . . . Terrain Rammed . | . . . Walls Destroyed . | . . . Machines Disabled . | . . . Actions | -11 -10 -9 --------- Run | Scr Mat Mat Total 567 | . 372 195 Wait 111 | . 87 24 Move 415 | . 261 154 Hop . | . . . Pick Up 2 | . 2 . Fast Attach 3 | . 2 1 Attach . | . . . Detach . | . . . Swap 3 | . 3 . Drop 2 | . 1 1 Fire 31 | . 16 15 Melee . | . . . Ram . | . . . Kick . | . . . Crush . | . . . Escape Stasis . | . . . Rewire . | . . . Trap . | . . . Miscellaneous . | . . . Route ------- -11/Scrapyard -10/Materials -9/Materials History --------- Turn | Location | Event 1 | -11/Scrapyard | Discovered new exit (range 0) 1 | -11/Scrapyard | Entered Materials 193 | -10/Materials | Central database locked down 311 | -10/Materials | Build established: Mutant 433 | -10/Materials | Discovered new exit (range 11) 533 | -10/Materials | Entered another Materials area 533 | -9/Materials | Accompanied by 1 ally 533 | -9/Materials | Evolved 2 slots: Utility x2 839 | -9/Materials | Self-destructed Last Messages --------------- KK52J85EOL: Sml. Laser Downloaded coordinate data. PARAMETERS=UTILITY_2 LOCATION=UNKNOWN GOAL=ESCAPE 00603_ T-07 Excavator is excavating. 00605_ U-05 Engineer lays Concrete. 00607_ T-07 Excavator is excavating. 00607_ U-05 Engineer lays Concrete. 00614_ T-07 Excavator is excavating. 00746_ U-05 Engineer builds a Wall. 00752_ Technician 1a reveals location of hidden door. 00770_ T-07 Excavator destroyed. 00773_ A-02 Transporter destroyed. 00773_ W-16 Scout destroyed. 00776_ Acquired 29 matter. 00790_ Dropped Aluminum Leg. 00791_ Acquired Lgt. Treads. 00796_ Acquired 45 matter. 00803_ Acquired 4 matter. Map ----- +----------------------------------------------------+ | ?????????????????????????????????????????????????? | | ?????????????????????????????????????????????????? | | ?????????????????????????????????????????????????? | | ?????????????????????????????????????????????????? | | ?????????????????????????????????????????????????? | | ?????????????????????????????????????????????????? | | ?????????????????????????????????????????????????? | | ?????????????????????????????????????????????????? | | ?????????????????????????????????????????????????? | | ?????????????????????????????????????????????????? | | ?????????????????????????????????????????????????? | | ?????????????????????????????????????????????????? | | ?????????????????????????????????????????????????? | | ?????????????????????????????????????????????????? | | ?????????????????????????????????????????????????? | | ?????????????????????????????????????????????????? | | ?????????????????????????????????????????????????? | | ?????????????????????????????????????????????????? | | ?????????????????????????????????????????????????? | | ??????????????????????#######????????????????????? | | ??????????????????????#! #????????????????????? | | ??????????????????????# ""#????????????????????? | | ??????????????????????# ""#????????????????????? | | ??????????????????????# T"#????????????????????? | | ??????????????????????# ""#????????????????????? | | ??????????????????????# @""#????????????????????? | | ??????????????????????+ #????????????????????? | | ??????????????????????# """ #????????????????????? | | ??????????????????????# """ #????????????????????? | | ??????????????????????# """ #????????????????????? | | ??????????????????????# #????????????????????? | | ??????????????????????+ u #????????????????????? | | ??????????????????????####+##???????????#####+##?? | | ?????????????????????????# #????????????? #?? | | ?????????????????????????# #????????????? """ #?? | | ?????????????????????????# #??????????????""" ??? | | ?????????????????????????# #?????????#+#??""" ??? | | ?????????????????????????# #?????????# #??? ???? | | ?????????????????????????# #?????????# #??? ???? | | ?????????????????????????# ########### #####+#???? | | ?????????????????????????#!*%!*! !* = = !#???? | | ?????????????????????????################### #???? | | ??????????????????????????????# #####?# #???? | | ??????????????????????????????# # #?# #???? | | ??????????????????????????????# """ + !#?# #???? | | ?????????????????##########???# """ # #?# #???? | | ?????????????????# !#???# """ ## ##?# #???? | | ?????????????????#! #???# ## #??# ### | | ?????????????????# ########+#### #### # | | ?????????????????# """ # | +----------------------------------------------------+ Best States ------------- Heat Dissipation 28 Energy Generation 10 Energy Capacity 125 Matter Stores 300 Matter Capacity 300 Sight Range 16 Robot Scan Range 10 Terrain Scan Density 10 Evasion (%) 40 Recoil Reduction 1 Item Schematics ----------------- None Robot Schematics ------------------ None Fabricated ------------ Nothing Alien Tech Used ----------------- None Achievements -------------- None Challenges ------------ None Game ------ Seed GreatDataReconstructor Manual? 0 Play Time 00:06:53 Cumulative 90.2 hours Start 2022.01.26 @ 18:20:29 End 2022.01.27 @ 20:54:48 Sessions 3 Manual Loads 0 Difficulty Rogue Special Mode None Game No. 108 Rogue 108 Adventurer 0 Explorer 0 Win Type - Total 0 Types 0/0/0/0/0/0/0/0/0 Lore% 53 Gallery% 54 Achievement% 43 Wizard Run 0 Options --------- ASCII 0 Keyboard 0 Movement Numpad Keybinds 0 Fullscreen 1 Font 18/X11Bold Map View 76x50 Tactical HUD 1 Map Filters NONE Filters NONE Steam 1 RUN: da9185e0-9f02-4ae8-bd25-ea64b7216906